bitfinex-derivatives/quotes_ETHF0:USTF0_20220108
["timestamp","ask_amount","ask_price","bid_price","bid_amount"]
[1641671545795,1.5829,3015.7,3013.4,0.0829]
[1641671545996,1.5829,3015.7,3013.1,14.32293]
[1641671546602,2.00479,3014.8,3014.1,2.00479]
[1641671546801,2.00479,3014.8,3014.2,1.302757]
[1641671548901,2.00479,3014.8,3013.8,2.00479]
[1641671549104,0.08293,3014.7,3013.8,2.00479]
[1641671549301,0.08293,3014.7,3012.6,34.87963]
[1641671549502,0.08293,3014.7,3012.4,0.08294]
[1641671549702,2.33209774,3014.6,3012.3,33.8025]
[1641671549903,1.5,3014.3,3012.1,1.11763815]
[1641671550105,0.08296,3014.2,3012.1,1.11763815]
[1641671550504,0.08296,3014.4,3012.1,14.24]
[1641671550706,2.00479,3013.8,3013.1,2.00479]
[1641671550903,2.00479,3013.8,3013.2,1.302757]
[1641671551104,0.08296,3015.2,3013.2,1.302757]
[1641671551304,1.65862785,3014.8,3013.2,1.302757]
[1641671551504,0.08294,3015.9,3013.2,15.542757]
[1641671551705,1.65858108,3014.9,3013.2,15.542757]
[1641671551905,1.65829779,3015.4,3013.7,1.65829779]
[1641671552105,0.08293,3015.3,3013.2,0.640787]
[1641671552305,0.08293,3015.9,3013.3,14.32293]
[1641671552504,0.08291,3016.0,3013.8,14.24]
[1641671552705,2.00479,3015.3,3014.6,2.00479]
[1641671552905,2.00479,3015.3,3014.7,1.302757]
[1641671553405,2.00479,3015.3,3014.6,2.00479]
[1641671553606,2.00479,3015.3,3014.3,2.00479]
[1641671554206,0.08291,3015.2,3014.3,2.00479]
[1641671554406,0.08291,3015.2,3012.9,34.57151]
[1641671554606,2.00479,3014.4,3013.7,2.00479]
[1641671554809,16.24479,3014.4,3013.7,2.00479]
[1641671555006,0.08294,3014.3,3012.3,1.11763815]
[1641671555406,0.08294,3014.3,3012.3,15.35763815]
[1641671555608,0.08294,3014.3,3012.3,1.11763815]
[1641671555910,0.6944,3013.8,3012.3,1.11763815]
[1641671556108,1.65940125,3013.4,3011.7,2.7770394]
[1641671556409,0.08298,3013.3,3011.7,17.0170394]
[1641671556709,3.66419125,3013.4,3012.7,2.00479]
[1641671556908,3.66419125,3013.4,3012.8,1.302757]
[1641671557910,2.00479,3013.4,3012.8,1.302757]
[1641671559509,2.00479,3013.7,3012.8,1.302757]
[1641671560010,1.65883971,3014.4,3012.8,1.302757]
[1641671560210,37.04183982,3014.9,3013.2,1.65853982]
[1641671560413,1.65853982,3014.9,3013.2,1.65853982]
[1641671560612,2.00479,3014.3,3013.6,2.00479]
[1641671560812,2.00479,3014.3,3013.7,1.302757]
[1641671561015,2.00479,3014.3,3013.6,2.00479]
[1641671562615,2.00479,3014.3,3013.7,0.66197]
[1641671562815,2.00479,3014.3,3013.8,0.640787]
[1641671563315,2.00479,3014.3,3013.9,0.66197]
[1641671564517,2.00479,3014.3,3013.8,0.640787]
[1641671564717,2.00479,3014.3,3014.0,0.66197]
[1641671566419,0.08294,3015.2,3014.0,0.66197]
[1641671566620,2.00479,3015.1,3014.4,2.00479]
[1641671566818,2.00479,3015.1,3014.5,0.640787]
[1641671569020,2.00479,3015.1,3014.4,2.00479]
[1641671569922,1.5,3014.8,3013.6,2.00479]
[1641671570323,0.08294,3014.7,3013.6,2.00479]
[1641671570522,0.08294,3015.0,3013.7,14.24]
[1641671570723,2.00479,3015.1,3014.4,2.00479]
[1641671570925,2.00479,3015.1,3014.5,1.302757]
[1641671571523,2.00479,3015.1,3014.6,14.24]
[1641671571724,2.00479,3015.1,3014.8,14.24]
[1641671571923,2.00479,3015.1,3014.5,0.723697]
[1641671572124,2.00479,3015.1,3014.6,0.66197]
[1641671572525,3.38626099,3016.4,3014.7,15.89774523]
[1641671572727,1.65774523,3016.4,3015.7,2.00479]
[1641671572924,3.66253524,3016.7,3015.8,0.66197]
[1641671572925,2.00479,3016.7,3015.8,0.66197]
[1641671573327,1.65774523,3016.4,3015.8,0.66197]
[1641671573529,1.65774523,3016.4,3015.9,0.640787]
[1641671573732,2.00479,3016.7,3016.0,0.66197]
[1641671574729,3.66233739,3016.7,3016.3,2.00479]
[1641671574931,2.00479,3016.7,3016.4,0.66197]
[1641671575131,3.66233739,3016.7,3016.4,0.66197]
[1641671575330,2.00479,3016.7,3016.4,0.66197]
[1641671578839,2.00479,3017.0,3016.4,0.66197]
[1641671579237,3.66221651,3017.0,3016.4,0.66197]
[1641671579638,2.00479,3017.0,3016.4,0.66197]
[1641671580942,2.00479,3017.0,3016.3,4.00958]
[1641671580943,1.65760234,3016.6,3016.3,4.00958]
[1641671581151,1.65815755,3016.4,3014.3,0.08287]
[1641671581349,14.24,3016.3,3014.0,1.11763815]
[1641671581545,5.306183,3016.3,3014.0,1.11763815]
[1641671581743,1.5,3016.4,3014.0,1.11763815]
[1641671581942,1.5,3016.4,3014.1,14.24]
[1641671582242,5.306535,3016.3,3014.1,14.24]
[1641671582542,0.640787,3016.5,3014.2,0.0829]
[1641671582742,2.00479,3015.4,3014.7,2.00479]
[1641671582947,2.00479,3015.4,3014.8,1.302757]
[1641671583343,0.640787,3015.3,3014.4,2.00479]
[1641671583742,2.29907654,3015.3,3014.4,2.00479]
[1641671583944,0.640787,3015.3,3014.4,2.00479]
[1641671584143,2.00479,3015.4,3014.4,2.00479]
[1641671584743,2.00479,3014.9,3014.4,2.00479]
[1641671584943,2.00479,3014.9,3014.5,0.640787]
[1641671585144,2.00479,3014.9,3014.4,2.00479]
[1641671585348,0.640787,3014.8,3013.6,0.08291]
[1641671585543,0.640787,3014.8,3013.0,1.11763815]
[1641671585744,0.08294,3014.7,3013.0,1.11763815]
[1641671586342,1.5,3014.5,3013.0,1.11763815]
[1641671586545,0.08294,3014.4,3013.0,1.11763815]
[1641671586745,2.00479,3013.5,3013.0,1.11763815]
[1641671586944,2.00479,3013.5,3013.1,0.66197]
[1641671587545,2.00479,3013.5,3013.1,14.90197]
[1641671587945,2.00479,3013.5,3013.1,0.66197]
[1641671589249,1.65886172,3014.3,3013.1,0.66197]
[1641671589647,1.65886172,3014.3,3013.1,14.90197]
[1641671590048,5.414,3014.8,3013.1,14.90197]
[1641671590348,5.414,3014.8,3014.3,14.24]
[1641671590547,5.414,3014.8,3014.2,1.5]
[1641671590548,5.414,3014.8,3014.5,14.24]
[1641671590847,5.414,3014.8,3014.7,4.00958]
[1641671591048,2.00479,3015.7,3014.7,4.67155]
[1641671591247,2.00479,3015.7,3014.7,6.32923753]
[1641671591448,0.640787,3015.3,3014.7,4.67155]
[1641671591853,2.00479,3015.7,3014.7,4.67155]
[1641671592452,2.00479,3015.7,3014.7,4.00958]
[1641671592649,0.0829,3015.6,3014.4,0.640787]
[1641671592850,2.00479,3015.0,3014.4,0.640787]
[1641671593051,2.00479,3015.0,3014.5,0.66197]
[1641671595353,2.645577,3015.0,3014.5,0.66197]
[1641671595554,2.00479,3015.0,3014.5,0.66197]
[1641671597659,2.645577,3015.0,3014.5,0.66197]
[1641671601859,2.00479,3015.0,3014.5,0.66197]
[1641671605261,2.645577,3015.0,3014.5,0.66197]
[1641671605962,2.645577,3015.0,3014.4,0.640787]
[1641671606462,2.645577,3015.0,3014.4,1.302757]
[1641671607261,2.00479,3015.0,3014.4,1.302757]
[1641671607862,2.645577,3015.0,3014.4,1.302757]
[1641671608762,2.00479,3015.0,3014.4,1.302757]
[1641671609862,2.645577,3015.0,3014.4,1.302757]
[1641671610463,2.645577,3015.0,3014.0,2.00479]
[1641671610664,3.533177,3015.0,3014.0,2.00479]
[1641671610863,2.00479,3014.4,3014.0,2.00479]
[1641671611063,1.5,3014.2,3013.5,1.11763815]
[1641671611265,0.08294,3014.1,3013.5,1.11763815]
[1641671612065,1.65916998,3013.7,3013.5,1.11763815]
[1641671612365,1.65938749,3013.6,3013.0,1.66616185]
[1641671612671,0.08296,3013.5,3012.7,1.37687357]
[1641671612867,5.66924289,3012.8,3012.7,1.37687357]
[1641671613064,5.66924289,3012.8,3012.3,2.07355042]
[1641671613065,4.00958,3012.8,3012.3,2.07355042]
[1641671613466,1.65977032,3012.6,3012.3,2.07355042]
[1641671613868,4.00958,3012.8,3012.3,2.07355042]
[1641671614066,0.640787,3012.7,3012.3,2.07355042]
[1641671614566,4.00958,3012.8,3012.3,2.07355042]
[1641671614766,2.00479,3012.8,3012.3,18.31834042]
[1641671614966,2.00479,3012.8,3012.4,0.66197]
[1641671615766,2.00479,3012.8,3012.4,14.90197]
[1641671616168,2.00479,3013.4,3012.4,14.90197]
[1641671616967,2.00479,3013.4,3012.4,0.66197]
[1641671619169,2.00479,3013.4,3012.3,2.00479]
[1641671619371,0.08297,3013.3,3012.3,2.00479]
[1641671619570,1.5,3013.2,3012.3,2.00479]
[1641671619771,1.5,3013.2,3011.3,5.414]
[1641671619970,0.08298,3013.1,3011.3,5.414]
[1641671620183,1.65982542,3012.5,3010.9,82.58903042]
[1641671620373,1.65982542,3012.5,3010.9,2.15653042]
[1641671620573,1.66001554,3012.2,3010.9,0.08298]
[1641671620771,2.00479,3012.1,3011.4,2.00479]
[1641671620970,0.640787,3012.0,3011.4,2.00479]
[1641671621373,2.30088246,3012.0,3011.4,2.00479]
[1641671621573,0.640787,3012.0,3011.4,2.00479]
[1641671621773,1.5,3011.7,3010.6,0.083]
[1641671621977,1.5,3011.7,3010.5,2.07355042]
[1641671622173,1.5,3011.7,3010.5,2.07155042]
[1641671622374,3.16057512,3011.2,3010.2,0.70693451]
[1641671622576,1.5,3010.8,3010.2,0.70693451]
[1641671622776,4.00958,3010.3,3010.2,0.70693451]
[1641671622976,4.650367,3010.3,3010.2,0.70693451]
[1641671623376,5.341967,3010.3,3010.2,0.70693451]
[1641671623576,4.70118,3010.3,3010.2,0.70693451]
[1641671623878,34.8015,3011.9,3010.2,0.66197]
[1641671624079,32.4726,3012.3,3010.2,14.90197]
[1641671624279,1.58301,3012.2,3010.2,14.90197]
[1641671624478,1.68583639,3011.9,3010.2,14.90197]
[1641671624879,2.00479,3011.4,3010.7,2.00479]
[1641671625079,0.640787,3011.3,3010.8,0.66197]
[1641671625781,2.00479,3011.4,3010.9,2.140787]
[1641671625978,2.00479,3011.4,3011.0,14.90197]
[1641671626778,2.00479,3011.4,3011.0,0.66197]
[1641671627179,2.00479,3011.4,3011.1,14.24]
[1641671627378,2.00479,3011.4,3011.3,14.24]
[1641671627580,2.00479,3011.4,3011.3,1.5]
[1641671627779,33.73701,3012.9,3011.3,1.5]
[1641671627979,0.08298,3013.2,3011.3,1.5]
[1641671628181,1.68583639,3013.3,3011.4,14.32298]
[1641671628780,2.00479,3012.8,3012.1,2.00479]
[1641671628980,0.640787,3012.7,3012.1,2.00479]
[1641671629182,0.640787,3012.7,3011.8,2.00479]
[1641671630783,2.00479,3011.9,3011.1,0.08298]
[1641671630986,0.640787,3011.8,3010.7,2.00479]
[1641671631584,0.640787,3011.8,3010.8,14.24]
[1641671631787,0.640787,3011.8,3010.7,2.00479]
[1641671631985,0.640787,3011.8,3010.8,1.5]
[1641671632284,2.00479,3011.9,3010.8,15.74]
[1641671632486,2.00479,3011.9,3010.9,0.08301]
[1641671632888,4.00958,3011.9,3010.9,0.08301]
[1641671633288,4.00958,3011.9,3010.7,2.0878]
[1641671634089,4.79548,3011.9,3010.7,2.0878]
[1641671634292,4.79548,3011.9,3010.7,2.00479]
[1641671635089,4.79548,3011.9,3010.8,1.5]
[1641671635290,4.79548,3011.9,3010.7,16.24479]
[1641671635490,4.79548,3011.9,3010.9,14.24]
[1641671635690,4.79548,3011.9,3011.4,1.5]
[1641671635691,2.00479,3011.9,3011.4,1.5]
[1641671635891,1.65965187,3012.8,3011.5,15.542757]
[1641671636391,1.65965187,3012.8,3011.5,17.042757]
[1641671636592,1.74247764,3013.1,3011.5,15.542757]
[1641671636793,1.65949764,3013.1,3011.6,0.08298]
[1641671636993,2.00479,3012.6,3011.9,2.00479]
[1641671637195,0.640787,3012.5,3012.0,0.66197]
[1641671637792,2.00479,3012.6,3012.0,14.90197]
[1641671637993,2.00479,3012.9,3012.0,14.90197]
[1641671638293,2.00479,3012.9,3012.0,0.66197]
[1641671638695,2.00479,3012.9,3011.6,2.08777]
[1641671638893,2.00479,3012.9,3011.6,2.00479]
[1641671638894,2.00479,3012.4,3011.6,2.00479]
[1641671639092,2.00479,3012.4,3011.7,0.66197]
[1641671639594,2.00479,3012.4,3011.7,14.90197]
[1641671639793,2.00479,3012.4,3011.9,15.74]
[1641671639992,3.66437852,3012.9,3012.0,0.66197]
[1641671640195,2.00479,3012.9,3012.6,1.5]
[1641671640394,1.65937648,3013.6,3012.9,14.24]
[1641671640596,1.65889199,3014.2,3013.0,0.74493]
[1641671640795,3.34454953,3014.5,3013.2,1.5]
[1641671640996,2.00479,3013.8,3013.3,14.24]
[1641671641199,2.00479,3013.8,3013.5,14.24]
[1641671641397,2.00479,3014.1,3013.5,14.24]
[1641671641596,2.00479,3014.1,3013.2,0.08294]
[1641671641597,2.00479,3014.1,3013.6,0.66197]
[1641671641796,2.645577,3014.1,3013.6,0.66197]
[1641671642599,2.645577,3014.1,3013.6,1.302757]
[1641671644098,2.00479,3014.1,3013.6,1.302757]
[1641671644899,2.00479,3014.1,3013.6,15.542757]
[1641671645499,2.645577,3014.1,3013.6,1.302757]
[1641671646799,2.645577,3014.1,3013.5,2.00479]
[1641671647000,1.5,3013.9,3013.1,2.00479]
[1641671647200,3.15923881,3013.6,3011.9,1.74219881]
[1641671647499,1.65951416,3013.1,3011.9,0.08296]
[1641671647700,1.65951416,3013.1,3011.6,7.07314529]
[1641671647899,1.65959128,3012.9,3011.5,0.08298]
[1641671648300,1.5,3013.2,3011.5,0.08298]
[1641671648500,1.65967666,3012.8,3011.5,0.08298]
[1641671648701,1.65988328,3012.4,3011.5,0.08298]
[1641671648903,2.00479,3011.8,3011.4,1.39053748]
[1641671649102,0.640787,3011.7,3011.4,1.39053748]
[1641671649304,0.640787,3011.7,3011.3,0.66197]
[1641671649901,2.00479,3011.8,3011.3,14.90197]
[1641671650103,0.08301,3012.9,3011.6,1.5]
[1641671650301,0.77741,3012.9,3011.7,14.24]
[1641671650504,1.5,3013.5,3011.7,14.32298]
[1641671650904,2.00479,3012.7,3012.0,16.24479]
[1641671651103,0.640787,3012.6,3012.1,0.66197]
[1641671651805,2.140787,3012.6,3011.4,0.08298]
[1641671652005,2.140787,3012.6,3010.6,0.083]
[1641671652211,2.140787,3012.6,3010.8,14.24]
[1641671652408,2.140787,3012.6,3010.9,0.083]
[1641671652607,1.5,3012.1,3010.9,0.083]
[1641671652809,0.77741,3012.5,3010.4,1.39053748]
[1641671653006,2.00479,3011.6,3010.6,2.00479]
[1641671653207,0.640787,3011.5,3010.6,2.00479]
[1641671653404,1.5,3011.4,3010.6,2.00479]
[1641671653605,1.5,3011.4,3010.2,1.65914529]
[1641671653808,1.5,3011.4,3010.0,0.08301]
[1641671654008,1.5,3011.4,3009.9,6.80453748]
[1641671654009,1.74353895,3011.3,3009.9,1.39053748]
[1641671654208,1.66050895,3011.3,3009.9,1.39053748]
[1641671654409,1.5,3011.2,3009.9,1.39053748]
[1641671654906,2.00479,3010.6,3009.9,3.39532748]
[1641671655106,0.640787,3010.5,3009.9,3.39532748]
[1641671655309,1.320887,3010.5,3009.9,2.00479]
[1641671655508,1.320887,3010.5,3009.6,2.00479]
[1641671655708,1.320887,3010.5,3009.3,1.66066061]
[1641671656205,2.98182895,3010.5,3009.0,1.39053748]
[1641671656408,1.5,3009.9,3009.0,1.39053748]
[1641671656607,0.08307,3009.8,3009.0,1.39053748]
[1641671657008,2.00479,3009.2,3009.0,1.39053748]
[1641671657309,0.640787,3009.1,3009.0,1.39053748]
[1641671657508,0.640787,3009.1,3008.8,2.32111529]
[1641671657710,2.00479,3009.2,3008.8,2.32111529]
[1641671657711,2.00479,3009.5,3008.8,14.24]
[1641671657914,0.08308,3010.4,3009.1,1.5]
[1641671658108,1.6608454,3010.7,3009.0,15.9008454]
[1641671658510,1.6608454,3010.7,3009.1,0.08305]
[1641671658714,1.5,3011.1,3009.2,1.5]
[1641671658917,2.00479,3010.7,3009.8,14.24]
[1641671659111,1.66040969,3011.5,3009.8,14.24]
[1641671659314,0.08305,3011.6,3010.0,14.24]
[1641671659511,0.83887784,3012.0,3010.3,14.24]
[1641671659712,1.66016436,3011.9,3010.2,1.66016436]
[1641671660013,1.66034353,3011.6,3009.9,1.66034353]
[1641671660214,1.5,3011.7,3009.7,2.08782]
[1641671660412,0.08303,3011.6,3009.7,2.08782]
[1641671660612,1.66047034,3011.3,3009.7,2.00479]
[1641671660813,1.66047034,3011.3,3009.7,2.08783]
[1641671661014,2.00479,3010.7,3009.7,2.08783]
[1641671661214,2.00479,3010.7,3009.7,2.00479]
[1641671661615,2.88229,3010.7,3009.7,2.00479]
[1641671661816,4.54309955,3010.7,3009.7,2.00479]
[1641671662015,1.66086195,3010.6,3009.7,2.00479]
[1641671663014,2.00479,3010.3,3009.7,2.00479]
[1641671663218,2.00479,3010.3,3009.8,14.880787]
[1641671663615,1.74346796,3011.4,3009.8,14.880787]
[1641671663616,1.66041796,3011.4,3010.3,14.24]
[1641671663820,34.3934,3012.5,3010.8,14.24]
[1641671664015,34.3934,3012.5,3011.4,14.24]
[1641671664216,1.68583639,3012.6,3011.5,0.66197]
[1641671664418,0.83887784,3012.3,3011.5,0.66197]
[1641671664616,0.640787,3012.2,3011.5,0.66197]
[1641671664817,1.5,3012.0,3011.3,0.083]
[1641671665017,3.66508391,3011.7,3010.8,2.00479]
[1641671665418,2.00479,3011.7,3010.8,2.00479]
[1641671665619,2.00479,3011.7,3010.7,14.24]
[1641671666020,2.00479,3011.7,3010.3,0.08301]
[1641671666219,2.00479,3011.7,3009.9,0.08301]
[1641671666420,0.08303,3011.6,3009.7,0.08303]
[1641671666618,0.08303,3011.6,3009.7,14.24]
[1641671667025,2.00479,3010.7,3010.0,2.00479]
[1641671667220,0.640787,3010.6,3010.0,2.00479]
[1641671668031,0.640787,3010.6,3009.2,0.08304]
[1641671668222,0.640787,3010.6,3008.9,0.08305]
[1641671668423,0.640787,3010.6,3008.8,0.08305]
[1641671668622,0.640787,3010.6,3009.1,14.24]
[1641671668823,0.640787,3010.6,3009.2,0.08305]
[1641671669022,0.640787,3010.6,3009.4,2.00479]
[1641671669023,1.5,3010.5,3009.4,2.00479]
[1641671669222,1.5,3010.2,3008.5,0.08305]
[1641671669822,1.5,3009.7,3008.5,0.08305]
[1641671670122,1.5,3009.7,3008.2,1.5]
[1641671670123,0.6181,3009.7,3008.2,1.5]
[1641671670522,0.6181,3009.7,3008.1,1.39053748]
[1641671670723,0.08308,3009.6,3008.1,1.39053748]
[1641671670924,2.00479,3009.1,3008.4,2.00479]
[1641671671123,0.640787,3009.0,3008.4,2.00479]
[1641671671723,0.640787,3009.0,3008.5,0.66197]
[1641671671923,0.640787,3009.0,3008.4,2.645577]
[1641671672127,0.08308,3009.6,3008.8,1.5]
[1641671672324,0.08307,3010.5,3009.5,1.5]
[1641671672526,0.84041907,3010.6,3009.1,1.5]
[1641671672724,0.84041907,3010.4,3009.2,2.16197]
[1641671672925,0.84041907,3010.4,3009.5,2.00479]
[1641671672926,2.00479,3010.2,3009.5,2.00479]
[1641671673125,1.258887,3009.7,3009.5,2.00479]
[1641671675533,1.258887,3009.7,3009.2,2.00479]
[1641671675731,1.258887,3009.7,3007.9,34.81627]
[1641671675931,1.258887,3009.7,3007.3,1.65914529]
[1641671675932,1.258887,3009.7,3008.8,1.5]
[1641671676131,1.66149112,3009.6,3008.1,14.24]
[1641671676336,1.258887,3009.7,3007.7,0.08308]
[1641671676533,0.08308,3009.6,3007.7,1.5]
[1641671676731,1.66165953,3009.3,3007.7,1.5]
[1641671676932,2.00479,3008.5,3007.8,2.00479]
[1641671677235,0.640787,3008.4,3007.8,2.00479]
[1641671677431,0.640787,3008.4,3007.9,1.302757]
[1641671678433,2.00479,3008.5,3008.2,1.5]
[1641671679236,2.00479,3008.5,3007.8,2.00479]
[1641671679237,0.640787,3008.4,3007.8,2.00479]
[1641671679435,0.640787,3008.4,3008.0,1.5]
[1641671679635,0.640787,3008.4,3007.9,1.302757]
[1641671679837,0.640787,3008.4,3007.9,0.640787]
[1641671680035,2.00479,3008.5,3008.0,0.66197]
[1641671680736,0.08309,3009.6,3008.4,15.74]
[1641671680936,2.62289,3009.7,3009.2,1.5]
[1641671681337,0.640787,3009.6,3009.2,1.5]
[1641671682139,0.640787,3009.6,3008.9,2.00479]
[1641671682341,0.640787,3009.6,3009.0,1.5]
[1641671682742,0.640787,3009.6,3008.9,2.00479]
[1641671682940,2.00479,3009.3,3008.9,2.00479]
[1641671683739,2.00479,3009.3,3008.9,4.807547]
[1641671684141,2.00479,3009.3,3008.9,3.307547]
[1641671684641,2.00479,3009.3,3009.2,1.5]
[1641671684843,0.7669,3009.6,3009.2,16.40197]
[1641671685041,2.00479,3010.1,3009.5,1.5]
[1641671685243,2.00479,3010.1,3010.0,1.5]
[1641671685443,69.51816961,3011.2,3010.0,1.5]
[1641671685643,0.6944,3011.4,3010.0,1.5]
[1641671685844,0.08303,3011.5,3009.8,1.5]
[1641671685845,1.66056409,3011.2,3009.8,1.5]
[1641671686043,1.66110198,3010.3,3009.3,0.08303]
[1641671686244,1.66110198,3010.3,3009.0,1.5]
[1641671686644,1.66137243,3009.8,3008.9,3.50479]
[1641671686845,1.66137243,3009.8,3008.9,2.00479]
[1641671687047,2.00479,3009.4,3008.9,2.00479]
[1641671687248,2.645577,3009.4,3008.9,3.307547]
[1641671687848,2.645577,3009.4,3008.9,2.00479]
[1641671688248,2.645577,3009.4,3008.9,4.16676]
[1641671688947,2.645577,3009.4,3008.9,2.66676]
[1641671689348,2.00479,3009.4,3009.2,1.5]
[1641671689548,2.00479,3009.4,3009.3,0.66197]
[1641671690053,2.00479,3009.7,3009.3,0.66197]
[1641671690249,1.74395678,3010.7,3009.6,1.5]
[1641671690450,0.08305,3010.9,3010.5,1.5]
[1641671690650,1.66066613,3011.1,3010.4,0.66197]
[1641671690850,1.66066613,3011.1,3009.7,0.08303]
[1641671691050,2.00479,3010.9,3010.5,1.5]
[1641671691350,2.00479,3010.9,3010.2,2.00479]
[1641671692150,2.00479,3010.9,3010.3,1.302757]
[1641671692752,2.645577,3010.9,3010.3,1.302757]
[1641671693152,2.00479,3010.9,3010.3,1.302757]
[1641671693352,2.00479,3010.9,3010.6,1.5]
[1641671694053,2.00479,3010.9,3010.3,1.302757]
[1641671694854,2.00479,3010.9,3010.7,1.5]
[1641671695056,2.00479,3010.9,3010.6,1.5]
[1641671695655,2.00479,3010.9,3010.7,0.66197]
[1641671696756,0.08303,3011.8,3010.8,3.15981164]
[1641671697056,2.00479,3012.1,3011.7,1.5]
[1641671697257,2.00479,3012.1,3011.7,2.802757]
[1641671697458,2.00479,3012.1,3011.7,1.302757]
[1641671698156,2.00479,3012.1,3011.7,0.66197]
[1641671698557,2.00479,3012.1,3011.4,2.00479]
[1641671699158,2.00479,3012.1,3011.1,3.50479]
[1641671699357,1.66042899,3011.5,3010.7,1.5]
[1641671699557,0.08301,3012.0,3010.3,1.5]
[1641671699558,1.66036834,3011.6,3010.3,1.5]
[1641671699758,0.08303,3011.5,3009.9,5.414]
[1641671699958,1.66051998,3011.3,3009.9,1.5]
[1641671700162,34.16283,3012.0,3010.7,1.5]
[1641671700359,1.66040969,3011.5,3010.7,1.5]
[1641671700559,0.640787,3011.4,3009.9,14.24]
[1641671700958,0.640787,3011.4,3010.6,1.5]
[1641671701161,2.00479,3011.2,3010.2,2.00479]
[1641671703060,2.00479,3010.6,3010.2,2.00479]
[1641671703263,0.640787,3010.5,3009.8,1.66044277]
[1641671703463,1.66127031,3010.0,3008.8,0.08305]
[1641671703662,0.640787,3010.5,3008.8,0.08305]
[1641671703861,0.08305,3010.4,3009.0,1.5]
[1641671704061,0.08305,3010.4,3008.4,1.39053748]
[1641671704264,0.08305,3010.4,3008.6,1.5]
[1641671704461,0.723857,3010.5,3008.6,1.5]
[1641671704661,0.723857,3010.5,3009.1,1.5]
[1641671704860,1.418257,3010.5,3009.1,1.5]
[1641671705063,2.00479,3009.5,3009.1,1.5]
[1641671705266,2.645577,3009.5,3009.1,1.5]
[1641671705461,2.645577,3009.5,3009.1,2.140787]
[1641671705862,2.645577,3009.5,3009.1,0.640787]
[1641671705863,2.00479,3009.5,3009.1,0.640787]
[1641671706062,2.00479,3009.5,3009.1,2.140787]
[1641671706263,2.00479,3009.5,3009.1,0.640787]
[1641671706462,2.00479,3009.5,3009.3,1.5]
[1641671707769,0.08307,3010.7,3009.1,1.302757]
[1641671707964,0.08307,3010.7,3009.1,2.802757]
[1641671708566,0.6944,3010.6,3009.1,2.802757]
[1641671708766,0.08305,3010.5,3009.1,2.802757]
[1641671709167,2.00479,3010.1,3009.4,2.00479]
[1641671709367,0.640787,3010.0,3009.4,2.00479]
[1641671709968,1.66151321,3009.5,3008.8,2.00479]
[1641671710369,0.8301,3009.5,3008.8,2.00479]
[1641671710568,2.49161321,3009.5,3008.8,2.00479]
[1641671710767,0.8301,3009.5,3008.8,2.00479]
[1641671712570,0.8301,3009.5,3008.9,0.640787]
[1641671713273,0.8301,3009.5,3009.1,14.24]
[1641671713470,0.8301,3009.5,3009.1,1.5]
[1641671713670,0.8301,3009.5,3009.2,0.66197]
[1641671714072,0.8301,3009.5,3009.4,1.5]
[1641671714472,0.8301,3009.5,3009.0,1.5]
[1641671714673,0.8301,3009.5,3009.3,1.5]
[1641671714972,0.8301,3009.5,3008.9,0.640787]
[1641671715171,0.8301,3009.5,3009.4,3.50479]
[1641671715372,0.08307,3010.7,3009.4,6.66543131]
[1641671715675,1.66038763,3011.6,3010.6,1.5]
[1641671715872,2.78458634,3011.4,3010.6,1.5]
[1641671716074,2.78458634,3011.5,3010.6,1.5]
[1641671716674,2.78458634,3011.5,3010.4,1.5]
[1641671716675,0.640787,3010.9,3010.4,1.5]
[1641671716874,0.640787,3010.9,3009.5,1.5]
[1641671717074,2.645577,3010.9,3010.2,2.00479]
[1641671717273,2.645577,3010.9,3009.5,1.5]
[1641671717475,2.728627,3010.9,3009.4,2.00479]
[1641671717675,2.728627,3010.9,3009.6,1.5]
[1641671717876,3.423027,3010.9,3009.4,2.00479]
[1641671718278,2.728627,3010.9,3009.9,1.5]
[1641671718476,2.728627,3010.9,3009.4,2.00479]
[1641671719079,2.728627,3010.9,3010.0,2.00479]
[1641671719377,0.14147839,3010.8,3010.0,2.00479]
[1641671719577,0.08304,3010.7,3010.0,2.00479]
[1641671719877,1.66092264,3010.6,3010.0,2.00479]
[1641671721277,0.14147839,3010.8,3010.3,1.5]
[1641671721478,0.08304,3011.4,3010.7,1.5]
[1641671721678,2.09961468,3011.6,3010.8,0.66197]
[1641671721886,1.68583639,3011.4,3011.2,1.5]
[1641671722280,1.68583639,3011.4,3011.3,0.66197]
[1641671723080,1.68583639,3011.4,3011.3,2.00479]
[1641671723681,1.68583639,3011.4,3011.3,3.50479]
[1641671723879,3.66485239,3012.2,3011.3,3.50479]
[1641671724079,3.66485239,3012.2,3011.3,2.00479]
[1641671725084,0.21985657,3012.1,3011.3,2.00479]
[1641671725381,0.640787,3012.0,3011.3,2.00479]
[1641671726385,0.77764357,3012.0,3011.3,2.00479]
[1641671726884,1.66029391,3011.7,3011.3,2.00479]
[1641671727784,0.13685657,3011.9,3011.6,1.5]
[1641671728082,0.13685657,3011.9,3011.8,1.5]
[1641671728485,1.65980338,3012.6,3011.8,1.5]
[1641671728682,18.46437216,3012.5,3011.3,2.00479]
[1641671728883,1.66025532,3012.2,3011.3,2.00479]
[1641671729082,0.083,3012.1,3011.3,2.00479]
[1641671729282,2.00479,3011.8,3011.3,2.00479]
[1641671729483,2.86709,3011.8,3011.3,2.00479]
[1641671729885,1.6603325,3011.7,3011.3,2.00479]
[1641671730085,2.86709,3011.8,3010.4,1.5]